[Event "Romanian Superliga 2024"]
[Site "Mamaia"]
[Date "2024.10.03"]
[Round "6.6"]
[White "Magold, Filip"]
[Black "Szabo, Attila"]
[Result "1-0"]
[ECO "B39"]
[WhiteElo "2406"]
[BlackElo "2137"]
[Annotator "TA"]
[PlyCount "85"]
[EventDate "2024.09.26"]
[EventType "team-tourn"]
[EventCountry "ROU"]
[SourceTitle "playchess.com"]
[Source "ChessBase"]
[SourceQuality "1"]
[TimeControl "40/5400+30:1800+30"]

{[%evp 24,85,52,52,62,36,100,105,104,87,105,27,35,37,27,27,41,35,18,-21,-19,-12,0,-15,-20,-41,-30,-42,-47,-49,-39,-45,-25,-24,0,-18,0,-35,82,84,72,80,64,44,95,89,103,72,96,95,123,88,88,88,119,119,88,88,371,361,29988,1566,29990,1631]} 1. e4 {[%emt 0:00:29]} c5 {[%emt 0:00:57]} 2. Nf3 {[%emt 0:00:09]} Nc6 {[%emt 0:01:58]} 3. d4 {[%emt 0:00:09]} cxd4 {[%emt 0:00:06]} 4. Nxd4 {[%emt 0:00:06]} g6 {[%emt 0:01:26]} 5. c4 {[%emt 0:00:52]} Bg7 {[%emt 0:00:10]} 6. Be3 {[%emt 0:00:08]} Nf6 {[%emt 0:00:15]} 7. Nc3 {[%emt 0:00:14]} Ng4 {[%emt 0:00:53]} 8. Qxg4 {[%emt 0:00:09]} Nxd4 {[%emt 0:00:05]} 9. Qd1 {[%emt 0:00:05]} Ne6 {[%emt 0:00:20]} 10. Rc1 {[%emt 0:04:22]} Qa5 {[%emt 0:04:18]} 11. Be2 {[%emt 0:08:37]} b6 {[%emt 0:04:44]} 12. O-O {[%emt 0:02:09]} Bb7 {[%emt 0:00:10]} 13. f3 {[%emt 0:10:14]} d6 {[%emt 0:02:37]} 14. a3 {[%emt 0:04:09]} g5 {[%emt 0:06:08]} (14... O-O $14) 15. Nb5 $16 {[%emt 0:03:15]} Bxb2 {[%emt 0:12:32] White is better.} 16. Rb1 {[%emt 0:04:03]} Bc3 {[%emt 0:03:09]} (16... Bxa3 $2 17. Ra1 Qb4 18. Rxa3 $18) 17. Rb3 {[%emt 0:05:01] White is more active.} (17. Qc2 $16 Be5 18. Bd2) 17... Bf6 $11 {[%emt 0:18:38]} 18. Rb4 {[%emt 0:05:54]} Nc5 {[%emt 0:04:42] Inhibits Ra4.} 19. Nc7+ {[%emt 0:02:12]} Kf8 {[%emt 0:01:21]} 20. Nxa8 {[%emt 0:00:20]} Bxa8 {[%emt 0:01:40]} 21. Qc1 {[%emt 0:10:14][%cal Ob4b5]} (21. f4 $5 gxf4 (21... Qxa3 $2 22. Bxc5 Bxe4 23. fxg5 $18) 22. Rxf4 $14 (22. Bxf4 Qxa3 23. e5 Bxe5 $15)) 21... h6 {[%emt 0:04:09][%mdl 1024] Black has compensation.} 22. Kh1 {[%emt 0:00:16]} Kg7 {[%emt 0:00:49]} 23. Bd2 {[%emt 0:04:36]} Qa6 {[%emt 0:03:19]} 24. Rd1 {[%emt 0:06:46]} Bc6 {[%emt 0:00:27]} 25. Bf1 {[%emt 0:04:07]} Qc8 {[%emt 0:02:15]} 26. Re1 {[%emt 0:01:10]} Qc7 {[%emt 0:01:56]} 27. Rb1 {[%emt 0:00:34]} Qb7 {[%emt 0:05:50]} 28. Be3 {[%emt 0:01:49]} Qc7 {[%emt 0:00:36]} 29. Qd2 {[%emt 0:01:39]} Qc8 {[%emt 0:05:37]} 30. Bd3 {[%emt 0:04:34]} Qa6 {[%emt 0:01:30]} (30... Qe6 $15 {keeps the upper hand.}) 31. Bxc5 $16 {[%emt 0:00:57]} bxc5 {[%emt 0:00:20]} 32. f4 {[%emt 0:00:07] aiming for e5.} e5 {[%emt 0:04:57]} 33. fxg5 {[%emt 0:01:32]} Bxg5 {[%emt 0:05:26]} ({Black should try} 33... hxg5 $14 34. a4 Qc8) 34. Qf2 {[%emt 0:00:45]} Rf8 {[%emt 0:01:04]} 35. h4 {[%emt 0:03:22]} Be7 {[%emt 0:00:20]} 36. Re3 {[%emt 0:00:54] Hoping for Rg3+.} Bd7 {[%emt 0:01:19]} 37. Rg3+ {[%emt 0:01:17]} Kh7 {[%emt 0:00:08] [#]} 38. Rb8 $1 {[%emt 0:01:21] Rxf8 would kill now.} Be6 {[%emt 0:01:02]} (38... Bc8 39. Rf3) 39. Rxf8 {[%emt 0:00:32]} Bxf8 {[%emt 0:00:02]} 40. Be2 $40 {[%emt 0:00:00][%mdl 128] Threatens to win with Bg4. White goes for the king.} Be7 $2 {[%emt 0:00:00][%mdl 8192]} (40... Bg7 $16 41. Rb3 Qc8) 41. Bg4 $18 {[%emt 0:10:02] White wants to mate with Bxe6.} Bxc4 {[%emt 0:10:43] [#]} (41... Qc8 $18) 42. Be2 $1 {[%emt 0:00:10][%mdl 512]} Kh8 {[%emt 0:09:37] [#]} (42... Be6 43. Bxa6) 43. Qf1 $1 {[%emt 0:01:33] Weighted Error Value: White=0.14 (very precise) /Black=0.53.  Loses game:     	---       	Black=1      Mistake:       	White=2     	Black=4      Inaccurate:     	White=4     	Black=2      OK:         	White=10    	Black=8      Best:        	White=2     	---} 1-0

[Event "Romanian Superliga 2024"]
[Site "Mamaia"]
[Date "2024.10.03"]
[Round "6.7"]
[White "Hamitevici, Vladimir"]
[Black "Petkov, Momchil"]
[Result "1/2-1/2"]
[ECO "B51"]
[WhiteElo "2419"]
[BlackElo "2540"]
[Annotator "TA"]
[PlyCount "73"]
[EventDate "2024.09.26"]
[EventType "team-tourn"]
[EventCountry "ROU"]
[SourceTitle "playchess.com"]
[Source "ChessBase"]
[SourceQuality "1"]
[TimeControl "40/5400+30:1800+30"]

{[%evp 11,73,18,11,24,12,-12,27,14,22,0,31,0,29,29,29,9,22,19,14,14,18,0,27,16,23,23,31,31,28,29,36,0,0,0,10,0,0,-44,-46,-41,-46,-49,-50,-53,-60,-67,-45,-61,-27,-47,-49,-50,-43,-43,-13,-79,0,0,0,0,0,0,0,0]} 1. e4 {[%emt 0:00:19]} c5 {[%emt 0:00:37]} 2. Nf3 {[%emt 0:00:40]} d6 {[%emt 0:00:16]} 3. Bb5+ {[%emt 0:01:10]} Nd7 {[%emt 0:00:16]} 4. d4 {[%emt 0:02:02]} cxd4 {[%emt 0:00:15]} 5. Qxd4 {[%emt 0:00:11]} a6 {[%emt 0:00:15]} 6. Bxd7+ {[%emt 0:01:22]} Bxd7 {[%emt 0:00:09]} 7. c4 {[%emt 0:01:36]} Nf6 {[%emt 0:03:10]} 8. O-O {[%emt 0:04:52]} e6 {[%emt 0:01:18]} 9. Nc3 {[%emt 0:08:36] White has an edge.} Be7 {[%emt 0:00:29]} 10. Qd3 {[%emt 0:05:14]} O-O {[%emt 0:02:43][%cal Ob7b5]} 11. Rd1 {[%emt 0:07:14]} Bc6 {[%emt 0:15:28][%cal Ob7b5]} (11... b5 $5) 12. Nd4 {[%emt 0:00:37]} Rc8 {[%emt 0:02:52]} 13. b3 {[%emt 0:01:53]} Qa5 {[%emt 0:01:56]} 14. Bd2 {[%emt 0:03:41] White wants to play Nxc6.} Qh5 {[%emt 0:01:54]} 15. h3 {[%emt 0:03:58]} Rfd8 {[%emt 0:03:39]} 16. Nxc6 {[%emt 0:04:24]} Rxc6 {[%emt 0:00:25]} 17. Bf4 {[%emt 0:03:14]} Nd7 {[%emt 0:10:16]} 18. Rac1 {[%emt 0:06:52]} Ne5 {[%emt 0:10:31]} 19. Qe2 {[%emt 0:01:14]} Qxe2 {[%emt 0:01:42]} 20. Nxe2 {[%emt 0:01:11]} g5 {[%emt 0:02:13]} 21. Bxe5 {[%emt 0:07:46]} dxe5 {[%emt 0:00:06]} 22. Rxd8+ {[%emt 0:00:02]} Bxd8 $14 {[%emt 0:00:04][%mdl 4096] Endgame. KRB-KRN} 23. Rd1 {[%emt 0:00:04]} Bc7 {[%emt 0:00:23]} 24. h4 {[%emt 0:00:18]} gxh4 {[%emt 0:06:05]} 25. Kf1 {[%emt 0:05:19]} Kf8 {[%emt 0:11:02]} 26. Nc1 {[%emt 0:08:19]} b5 {[%emt 0:14:24]} 27. cxb5 {[%emt 0:00:09]} axb5 {[%emt 0:00:03]} 28. Nd3 {[%emt 0:00:08]} Ra6 {[%emt 0:01:30]} 29. Nb4 {[%emt 0:07:31]} Ra3 {[%emt 0:00:40]} 30. Ra1 {[%emt 0:03:19]} Bb6 {[%emt 0:01:46]} 31. Nc2 {[%emt 0:00:42]} Ra8 {[%emt 0:00:43]} 32. a4 {[%emt 0:00:15]} Rc8 {[%emt 0:00:22]} 33. Ra2 {[%emt 0:00:20]} (33. a5 $11 Bxf2 34. Kxf2 Rxc2+ 35. Kf3) 33... Rc3 {[%emt 0:07:18]} (33... bxa4 $17 34. bxa4 Rc4) 34. a5 $11 {[%emt 0:03:23] The position is equal.} Bxa5 {[%emt 0:00:12]} 35. Rxa5 {[%emt 0:00:07]} Rxc2 {[%emt 0:00:05]} 36. Rxb5 {[%emt 0:00:04]} Rb2 {[%emt 0:00:12]} 37. Rxe5 {[%emt 0:02:37] Weighted Error Value: White=0.12 (very precise) /Black=0.11 (very precise) .  Mistake:       	White=1     	Black=1      Inaccurate:     	White=3     	Black=6      OK:         	White=7     	Black=7      Best:        	White=4     	Black=1} 1/2-1/2

[Event "Romanian Superliga 2024"]
[Site "Mamaia"]
[Date "2024.10.03"]
[Round "6.8"]
[White "Stoyanov, Tsvetan"]
[Black "Raceanu, Valentin"]
[Result "0-1"]
[ECO "A17"]
[WhiteElo "2471"]
[BlackElo "2427"]
[Annotator "RC"]
[PlyCount "146"]
[EventDate "2024.09.26"]
[EventType "team-tourn"]
[EventCountry "ROU"]
[SourceTitle "playchess.com"]
[Source "ChessBase"]
[SourceQuality "1"]
[TimeControl "40/5400+30:1800+30"]

1. c4 {[%emt 0:00:14]} e6 {[%emt 0:04:54]} 2. Nf3 {[%emt 0:00:24]} d5 {[%emt 0:00:06]} 3. e3 {[%emt 0:00:20]} Nf6 {[%emt 0:00:18]} 4. Nc3 {[%emt 0:00:05]} Bd6 {[%emt 0:02:06]} 5. b3 {[%emt 0:01:28]} O-O {[%emt 0:01:30]} 6. Bb2 {[%emt 0:00:12]} b6 {[%emt 0:04:29]} 7. cxd5 {[%emt 0:04:30]} exd5 {[%emt 0:00:24]} 8. Nb5 {[%emt 0:00:51]} Be7 {[%emt 0:00:45]} 9. Be5 {[%emt 0:02:57]} Na6 {[%emt 0:03:38]} 10. Nbd4 {[%emt 0:11:51]} Bb7 {[%emt 0:11:05]} 11. Nc6 {[%emt 0:13:04]} Bxc6 {[%emt 0:02:09]} 12. Bxa6 {[%emt 0:00:01]} Nd7 {[%emt 0:11:13]} 13. Bb2 {[%emt 0:11:26]} Nc5 {[%emt 0:03:07]} 14. Be2 {[%emt 0:00:49]} a5 {[%emt 0:11:41]} 15. O-O {[%emt 0:04:56]} Bb7 {[%emt 0:07:25]} 16. Qc2 {[%emt 0:03:46]} Re8 {[%emt 0:07:36]} 17. Bb5 {[%emt 0:13:11]} c6 {[%emt 0:00:30]} 18. Be2 {[%emt 0:00:04]} Bf8 {[%emt 0:06:37]} 19. Rac1 {[%emt 0:03:32]} Rc8 {[%emt 0:00:17]} 20. Ne5 {[%emt 0:12:22]} f6 {[%emt 0:10:06]} 21. Nf3 {[%emt 0:01:28]} Ba6 {[%emt 0:04:46]} 22. Bxa6 {[%emt 0:03:08]} Nxa6 {[%emt 0:00:02]} 23. Qf5 {[%emt 0:00:12]} Rc7 {[%emt 0:02:18]} 24. Nd4 {[%emt 0:04:15]} Qc8 {[%emt 0:00:05]} 25. Qb1 {[%emt 0:00:56]} Nc5 {[%emt 0:00:22]} 26. f3 {[%emt 0:00:50]} Qd7 {[%emt 0:02:20]} 27. Nf5 {[%emt 0:02:15]} Ne6 {[%emt 0:00:44]} 28. Qd3 {[%emt 0:01:33]} Nc5 {[%emt 0:00:18]} 29. Qc2 {[%emt 0:00:16]} Ne6 {[%emt 0:00:36]} 30. Qd3 {[%emt 0:01:24]} b5 {[%emt 0:00:36]} 31. Ng3 {[%emt 0:00:27]} c5 {[%emt 0:00:21]} 32. Nh5 {[%emt 0:00:28]} c4 {[%emt 0:02:17]} 33. Qf5 {[%emt 0:01:46]} Qf7 {[%emt 0:00:05]} 34. f4 {[%emt 0:01:18]} Bb4 {[%emt 0:00:51]} 35. Rcd1 {[%emt 0:00:51]} Qg6 {[%emt 0:01:11]} 36. Qh3 {[%emt 0:00:16]} Qf7 {[%emt 0:00:41]} 37. Rf3 {[%emt 0:00:47]} d4 {[%emt 0:00:24]} 38. exd4 {[%emt 0:00:17]} Rd8 {[%emt 0:00:54]} 39. Re3 {[%emt 0:00:52]} Nxd4 {[%emt 0:00:15]} 40. Bxd4 {[%emt 0:00:00]} Rxd4 {[%emt 0:00:00]} 41. Qg4 {[%emt 0:11:35]} f5 {[%emt 0:15:25]} 42. Qf3 {[%emt 0:06:54]} Rc8 {[%emt 0:03:50]} 43. Qe2 {[%emt 0:08:03]} Rcd8 {[%emt 0:00:15]} 44. Rg3 {[%emt 0:00:57]} Re4 {[%emt 0:02:59]} 45. Qf3 {[%emt 0:00:22]} g6 {[%emt 0:03:00]} 46. d3 {[%emt 0:02:23]} cxd3 {[%emt 0:04:43]} 47. h4 {[%emt 0:01:04]} d2 {[%emt 0:00:18]} 48. Kh2 {[%emt 0:00:13]} Kf8 {[%emt 0:01:14]} 49. a3 {[%emt 0:00:18]} Bc5 {[%emt 0:02:53]} 50. Qc3 {[%emt 0:00:40]} Bd4 {[%emt 0:00:05]} 51. Qxa5 {[%emt 0:00:40]} Qe7 {[%emt 0:00:28]} 52. Rxd2 {[%emt 0:00:43]} gxh5 {[%emt 0:00:15]} 53. Rg5 {[%emt 0:00:17]} Rxf4 {[%emt 0:00:18]} 54. g3 {[%emt 0:00:15]} Rf3 {[%emt 0:01:12]} 55. Kg2 {[%emt 0:03:08]} Rxb3 {[%emt 0:00:39]} 56. Rxf5+ {[%emt 0:00:24]} Kg7 {[%emt 0:00:11]} 57. Rg5+ {[%emt 0:01:06]} Kh8 {[%emt 0:00:15]} 58. Kh2 {[%emt 0:00:33]} Bg1+ {[%emt 0:01:21]} 59. Kh1 {[%emt 0:00:11]} Qe4+ {[%emt 0:00:26]} 60. Rg2 {[%emt 0:00:06]} Rd1 {[%emt 0:00:55]} 61. Qa6 {[%emt 0:00:16]} Be3+ {[%emt 0:00:29]} 62. Kh2 {[%emt 0:00:03]} Bxg5 {[%emt 0:00:11]} 63. hxg5 {[%emt 0:00:19]} Qd4 {[%emt 0:00:37]} 64. Qc8+ {[%emt 0:00:31]} Qd8 {[%emt 0:00:13]} 65. Qe6 {[%emt 0:00:07]} Rf3 {[%emt 0:00:53]} 66. Qe5+ {[%emt 0:01:32]} Kg8 {[%emt 0:00:05]} 67. Qe6+ {[%emt 0:00:03]} Rf7 {[%emt 0:00:41]} 68. g6 {[%emt 0:00:38]} hxg6 {[%emt 0:00:05]} 69. Qxg6+ {[%emt 0:00:01]} Rg7 {[%emt 0:00:14]} 70. Qe6+ {[%emt 0:00:03]} Kh7 {[%emt 0:00:17]} 71. Qf5+ {[%emt 0:01:18]} Kh6 {[%emt 0:00:44]} 72. Re2 {[%emt 0:00:17]} Rd6 {[%emt 0:00:30]} 73. Re5 {[%emt 0:00:48]} Qg5 {[%emt 0:00:46]} 0-1

[Event "Romanian Superliga 2024"]
[Site "Mamaia"]
[Date "2024.10.03"]
[Round "6.9"]
[White "Filip, Andrei"]
[Black "Ghimpu, Samuel-Timotei"]
[Result "0-1"]
[ECO "B12"]
[WhiteElo "2278"]
[BlackElo "2456"]
[Annotator "TA"]
[PlyCount "64"]
[EventDate "2024.09.26"]
[EventType "team-tourn"]
[EventCountry "ROU"]
[SourceTitle "playchess.com"]
[Source "ChessBase"]
[SourceQuality "1"]
[TimeControl "40/5400+30:1800+30"]

{[%evp 9,64,0,0,0,0,-2,0,-42,-35,-55,-26,-26,-23,-14,-32,-27,-18,0,43,-38,-44,-80,0,-95,-93,-132,-135,-142,-139,-133,-112,-255,-225,-214,-218,-214,-206,-227,-233,-231,-223,-227,-231,-227,-215,-256,-230,-232,-212,-279,-246,-285,-275,-273,-266,-288,-285]} 1. e4 {[%emt 0:00:08]} c6 {[%emt 0:16:39]} 2. d4 {[%emt 0:00:09]} d5 {[%emt 0:00:07]} 3. e5 {[%emt 0:00:06]} Bf5 {[%emt 0:04:46]} 4. Nc3 {[%emt 0:00:29]} a6 {[%emt 0:06:41]} 5. Be3 {[%emt 0:07:27]} e6 {[%emt 0:06:45]} 6. g4 {[%emt 0:03:26]} Bg6 {[%emt 0:01:04][%cal Oc6c5]} 7. Nge2 {[%emt 0:00:25] [#]} c5 $1 {[%emt 0:01:00]} 8. h4 {[%emt 0:02:55] The position is equal.} (8. f4 Qh4+) 8... h5 {[%emt 0:01:21]} 9. Nf4 {[%emt 0:06:10]} Ne7 {[%emt 0:00:33] ...cxd4 would now be deadly.} (9... Bh7 $5 10. dxc5 (10. Nxh5 Nc6 $11) 10... Nc6 $17) 10. Nxg6 {[%emt 0:08:17]} (10. Nxh5 Nbc6 11. Ne2 Nb4 $17) 10... Nxg6 {[%emt 0:01:09]} 11. Bg5 {[%emt 0:07:42]} Qc7 {[%emt 0:19:11] Hoping for ...cxd4.} 12. gxh5 {[%emt 0:07:07]} Ne7 {[%emt 0:01:26]} 13. dxc5 {[%emt 0:13:31]} Nec6 {[%emt 0:19:43]} 14. Na4 {[%emt 0:12:59]} (14. f4 $14) 14... Nd7 $15 {[%emt 0:01:33]} 15. c4 {[%emt 0:05:14]} Nxc5 {[%emt 0:11:09]} (15... Ncxe5 16. cxd5 Nxc5 17. Nxc5 Qxc5 18. Bg2 $16) (15... dxc4 $17 16. Bxc4 Ndxe5) 16. Nxc5 {[%emt 0:17:50]} (16. cxd5 $11 {was the only way to keep the balance.} Nxa4 17. Qxa4 Qxe5+ 18. Be2 Qxd5 19. O-O) 16... Bxc5 $17 {[%emt 0:00:06]} 17. cxd5 {[%emt 0:02:10]} Bb4+ {[%emt 0:00:49]} ({Inferior is} 17... Nxe5 18. Qa4+ Kf8 19. O-O-O $14) (17... Qxe5+ 18. Be2 Nd4 (18... Qxd5 19. Qxd5 exd5 20. Rd1 $14) (18... exd5 19. Kf1 $11) 19. Rc1 Qxd5 20. Rh3 $15) 18. Bd2 {[%emt 0:00:25]} Qxe5+ {[%emt 0:00:19]} 19. Be2 {[%emt 0:00:07] White is weak on the dark squares} Qxd5 {[%emt 0:02:07] Black has more active pieces.} 20. Rh3 {[%emt 0:00:56] This costs White the game.} (20. Rg1 $17 {was the only defense.} Bxd2+ 21. Qxd2) 20... Qg2 {[%emt 0:00:21]} 21. Bf1 {[%emt 0:00:24] [#]} Qe4+ {[%emt 0:00:05]} 22. Re3 {[%emt 0:01:24]} Qxh4 {[%emt 0:00:08]} 23. Bxb4 {[%emt 0:00:51]} Qxb4+ {[%emt 0:00:06]} ({Resist} 23... Nxb4 24. a3 Nc6 25. Rh3) 24. Qd2 {[%emt 0:00:04]} Qxd2+ {[%emt 0:00:09]} ({But not} 24... Rxh5 25. Rd1 $19) 25. Kxd2 {[%emt 0:00:03]} Rxh5 {[%emt 0:00:07]} 26. Bg2 {[%emt 0:00:37]} Rd8+ {[%emt 0:00:19]} 27. Ke1 {[%emt 0:00:35]} Rg5 {[%emt 0:00:58]} 28. Kf1 {[%emt 0:00:11]} Rd2 {[%emt 0:00:17]} 29. Rb1 {[%emt 0:01:23]} Rc5 {[%emt 0:00:49]} 30. Re2 {[%emt 0:00:12]} Rxe2 {[%emt 0:01:08] Black has a decisive advantage.} 31. Kxe2 {[%emt 0:00:01]} Rc2+ {[%emt 0:00:07]} 32. Ke3 {[%emt 0:00:11]} f5 {[%emt 0:00:06] Against Be4.   Weighted Error Value: White=0.29 (precise) /Black=0.14 (very precise) .  Mistake:       	White=3     	Black=1      Inaccurate:     	White=4     	Black=2      OK:         	White=7     	Black=9      Best:        	White=7     	Black=2} 0-1

[Event "Romanian Superliga 2024"]
[Site "Mamaia"]
[Date "2024.10.03"]
[Round "6.11"]
[White "Itkis, Boris"]
[Black "Gheorghiu, Calin"]
[Result "1/2-1/2"]
[ECO "E06"]
[WhiteElo "2279"]
[BlackElo "2313"]
[Annotator "RC"]
[PlyCount "64"]
[EventDate "2024.09.26"]
[EventType "team-tourn"]
[EventCountry "ROU"]
[SourceTitle "playchess.com"]
[Source "ChessBase"]
[SourceQuality "1"]
[TimeControl "40/5400+30:1800+30"]

1. d4 {[%emt 0:00:03]} Nf6 {[%emt 0:00:03]} 2. c4 {[%emt 0:00:07]} e6 {[%emt 0:00:02]} 3. Nf3 {[%emt 0:00:10]} d5 {[%emt 0:00:03]} 4. g3 {[%emt 0:00:35]} Be7 {[%emt 0:00:09]} 5. Bg2 {[%emt 0:00:07]} O-O {[%emt 0:00:02]} 6. Nc3 {[%emt 0:00:30]} c6 {[%emt 0:00:07]} 7. O-O {[%emt 0:00:25]} a5 {[%emt 0:00:14]} 8. Ne5 {[%emt 0:04:11]} Nbd7 {[%emt 0:01:49]} 9. Nxd7 {[%emt 0:06:47]} Nxd7 {[%emt 0:00:09]} 10. b3 {[%emt 0:04:20]} b6 {[%emt 0:01:24]} 11. Bb2 {[%emt 0:24:51]} Ba6 {[%emt 0:00:38]} 12. Rc1 {[%emt 0:00:07]} b5 {[%emt 0:08:24]} 13. cxd5 {[%emt 0:04:54]} cxd5 {[%emt 0:00:54]} 14. Re1 {[%emt 0:01:00]} Nb6 {[%emt 0:02:27]} 15. e3 {[%emt 0:02:07]} b4 {[%emt 0:02:52]} 16. Ne2 {[%emt 0:05:55]} a4 {[%emt 0:00:47]} 17. Rc2 {[%emt 0:00:02]} Qd7 {[%emt 0:02:33]} 18. Nf4 {[%emt 0:00:40]} Rfc8 {[%emt 0:02:05]} 19. Bf1 {[%emt 0:03:48]} Rxc2 {[%emt 0:07:45]} 20. Qxc2 {[%emt 0:00:05]} Rc8 {[%emt 0:00:15]} 21. Qb1 {[%emt 0:00:18]} Bxf1 {[%emt 0:00:22]} 22. Kxf1 {[%emt 0:00:32]} a3 {[%emt 0:01:48]} 23. Bc1 {[%emt 0:00:10]} Qc6 {[%emt 0:12:32]} 24. Bd2 {[%emt 0:19:32]} Qc2 {[%emt 0:00:37]} 25. Ke2 {[%emt 0:00:07]} Qxb1 {[%emt 0:02:54]} 26. Rxb1 {[%emt 0:00:05]} Rc2 {[%emt 0:00:04]} 27. Kd1 {[%emt 0:01:24]} Rxa2 {[%emt 0:00:27]} 28. Nd3 {[%emt 0:00:01]} f6 {[%emt 0:01:52]} 29. Rc1 {[%emt 0:01:24]} Kf7 {[%emt 0:09:03]} 30. Rc2 {[%emt 0:00:10]} Ra1+ {[%emt 0:00:08]} 31. Rc1 {[%emt 0:00:08]} Ra2 {[%emt 0:00:29]} 32. Rc2 {[%emt 0:00:08]} Ra1+ {[%emt 0:00:17]} 1/2-1/2

[Event "Romanian Superliga 2024"]
[Site "Mamaia"]
[Date "2024.10.03"]
[Round "6.12"]
[White "Coca, Cristi-Iulian"]
[Black "Negrean, Andrei"]
[Result "1/2-1/2"]
[ECO "B22"]
[WhiteElo "2233"]
[BlackElo "2267"]
[Annotator "RC"]
[PlyCount "55"]
[EventDate "2024.09.26"]
[EventType "team-tourn"]
[EventCountry "ROU"]
[SourceTitle "playchess.com"]
[Source "ChessBase"]
[SourceQuality "1"]
[TimeControl "40/5400+30:1800+30"]

1. e4 {[%emt 0:00:04]} c5 {[%emt 0:00:11]} 2. c3 {[%emt 0:00:06]} d5 {[%emt 0:00:19]} 3. exd5 {[%emt 0:00:07]} Qxd5 {[%emt 0:00:13]} 4. Nf3 {[%emt 0:00:03]} Nc6 {[%emt 0:00:40]} 5. Na3 {[%emt 0:00:06]} Nf6 {[%emt 0:04:47]} 6. Be2 {[%emt 0:01:57]} e6 {[%emt 0:04:29]} 7. O-O {[%emt 0:01:01]} Be7 {[%emt 0:01:05]} 8. d3 {[%emt 0:04:51]} O-O {[%emt 0:01:05]} 9. Nc4 {[%emt 0:00:30]} b6 {[%emt 0:08:25]} 10. a4 {[%emt 0:00:50]} Bb7 {[%emt 0:10:49]} 11. a5 {[%emt 0:05:11]} b5 {[%emt 0:05:54]} 12. Ne3 {[%emt 0:02:44]} Qd8 {[%emt 0:03:37]} 13. a6 {[%emt 0:01:53]} Bc8 {[%emt 0:00:22]} 14. d4 {[%emt 0:03:45]} Qb6 {[%emt 0:07:22]} 15. dxc5 {[%emt 0:23:47]} Bxc5 {[%emt 0:00:28]} 16. b4 {[%emt 0:00:54]} Be7 {[%emt 0:00:46]} 17. c4 {[%emt 0:00:27]} bxc4 {[%emt 0:12:13]} 18. Nxc4 {[%emt 0:00:18]} Qxb4 {[%emt 0:00:14]} 19. Ba3 {[%emt 0:02:38]} Qb8 {[%emt 0:01:25]} 20. Nfe5 {[%emt 0:12:35]} Bxa3 {[%emt 0:03:49]} 21. Nxc6 {[%emt 0:01:15]} Qc7 {[%emt 0:00:14]} 22. Bf3 {[%emt 0:09:05]} Nd5 {[%emt 0:09:17]} 23. Bxd5 {[%emt 0:09:35]} exd5 {[%emt 0:00:06]} 24. Qxd5 {[%emt 0:00:24]} Be6 {[%emt 0:01:15]} 25. Qe4 {[%emt 0:00:34]} Rfc8 {[%emt 0:05:19]} 26. Nxa3 {[%emt 0:05:10]} Qxc6 {[%emt 0:00:05]} 27. Qxc6 {[%emt 0:00:19]} Rxc6 {[%emt 0:00:01]} 28. Nb5 {[%emt 0:00:41]} 1/2-1/2